bitfinex/quotes_ETHUSD_20260102
["timestamp","ask_amount","ask_price","bid_price","bid_amount"]
[1767350171717,6.8209879,3059.2,3058.5,0.63069609]
[1767350171897,1.94e-06,3059.3,3058.5,0.001]
[1767350172328,1.94e-06,3059.3,3058.6,0.02199887]
[1767350172531,6.12171531,3059.3,3058.6,0.02199887]
[1767350173028,6.12171531,3059.3,3058.7,0.0546625]
[1767350175215,6.12171337,3059.1,3058.7,0.03266363]
[1767350175533,6.12171337,3059.1,3058.5,3.30318684]
[1767350176029,1.94e-06,3059.3,3058.8,0.08640965]
[1767350176329,1.94e-06,3059.3,3059.0,0.08640965]
[1767350176837,1.94e-06,3059.3,3059.1,0.10735712]
[1767350178018,1.94e-06,3059.3,3059.2,3.26882845]
[1767350178225,1.94e-06,3059.3,3059.2,0.65704292]
[1767350178424,1.94e-06,3059.3,3059.2,0.80548032]
[1767350178601,1.94e-06,3059.3,3059.2,0.00943277]
[1767350184741,1.94e-06,3059.3,3058.8,0.12834944]
[1767350186417,6.30353278,3059.3,3058.8,0.12834944]
[1767350187117,6.30353278,3059.3,3059.1,0.001]
[1767350187341,6.30353278,3059.3,3058.8,0.12834944]
[1767350187520,6.30353084,3059.2,3058.8,0.12834944]
[1767350187838,6.30353084,3059.2,3058.5,0.09402424]
[1767350188133,6.30353084,3059.0,3058.5,0.001]
[1767350188537,6.30353084,3058.9,3058.0,0.11216215]
[1767350188835,6.30353084,3058.9,3058.1,0.11216215]
[1767350189333,6.30353084,3058.9,3058.2,0.11216215]
[1767350190645,6.30353084,3058.9,3058.1,0.33832374]
[1767350190646,6.30353084,3058.7,3058.1,0.33832374]
[1767350190820,6.30353084,3058.7,3058.0,0.14792711]
[1767350191025,6.30353084,3058.7,3058.0,3.27009053]
[1767350191234,6.30353084,3058.7,3058.1,0.14792711]
[1767350193720,6.30353084,3058.6,3058.1,0.14792711]
[1767350194116,7.26082219,3058.6,3057.9,0.2009097]
[1767350194649,6.30353084,3058.5,3057.9,0.2009097]
[1767350195256,6.30353084,3058.5,3057.9,0.001]
[1767350195257,6.30353084,3058.4,3057.9,0.001]
[1767350195461,7.16153084,3058.4,3057.4,0.2356027]
[1767350195630,6.30353084,3058.3,3057.4,0.2356027]
[1767350196458,7.16153084,3058.3,3057.4,0.2356027]
[1767350196657,6.30353084,3058.1,3057.4,0.2356027]
[1767350198929,6.30353084,3057.9,3057.4,0.2356027]
[1767350200949,6.30353084,3057.9,3057.3,0.001]
[1767350201150,6.30353084,3057.9,3057.3,0.31753706]
[1767350201460,6.30353084,3057.8,3057.3,0.001]
[1767350201758,6.30353084,3057.8,3057.3,0.33327133]
[1767350202535,10.04032106,3058.0,3057.3,0.33327133]
[1767350203061,13.31043938,3058.0,3057.3,0.33327133]
[1767350203235,14.16843938,3058.0,3057.3,0.33327133]
[1767350203431,13.31043938,3058.0,3057.3,0.33327133]
[1767350203754,6.30353084,3057.9,3057.3,0.33327133]
[1767350205165,9.57376627,3057.9,3057.3,0.33327133]
[1767350205538,6.30353084,3057.9,3057.3,0.33327133]
[1767350210672,9.57374954,3057.9,3057.3,0.33327133]
[1767350210840,6.30353084,3057.9,3057.3,0.33327133]
[1767350217038,3.80871558,3059.0,3057.6,3.73965026]
[1767350217039,6.72897338,3058.5,3057.6,3.73965026]
[1767350217243,6.72897338,3058.5,3057.5,0.01355924]
[1767350217442,6.72897338,3058.5,3057.6,3.73965026]
[1767350217668,0.00100096,3058.5,3057.8,3.73965026]
[1767350217868,0.00100096,3058.5,3057.7,0.01355924]
[1767350217869,6.72797242,3058.7,3058.0,0.01255828]
[1767350219574,0.002,3058.5,3058.1,0.03910376]
[1767350220774,0.002,3058.5,3058.2,0.05214366]
[1767350221076,6.72797242,3059.0,3058.2,0.05014366]
[1767350221273,6.72797242,3059.0,3058.3,0.06302381]
[1767350223379,1.94e-06,3059.3,3058.2,0.65901501]
[1767350223561,1.94e-06,3059.3,3058.4,7.39636698]
[1767350224278,1.94e-06,3059.3,3058.5,0.01258827]
[1767350224949,1.94e-06,3059.3,3058.7,0.01258827]
[1767350225676,1.94e-06,3059.3,3058.6,3.26946969]
[1767350225881,1.94e-06,3059.3,3058.7,0.02497247]
[1767350226179,1.94e-06,3059.3,3058.7,0.68137309]
[1767350226375,3.27019317,3059.8,3058.7,0.65640062]
[1767350226376,0.002,3059.8,3058.7,0.65640062]
[1767350226582,6.72797242,3059.7,3058.8,0.03731859]
[1767350226752,6.72797242,3059.7,3059.0,0.03731859]
[1767350226952,6.72797242,3059.7,3059.1,0.03731859]
[1767350227859,6.72397823,3059.5,3059.1,0.03731859]
[1767350228174,6.7229792,3059.5,3059.1,0.03731859]
[1767350235083,6.7249792,3059.5,3059.1,0.03731859]
[1767350235887,6.7249792,3059.5,3059.1,0.07000794]
[1767350240700,6.7249792,3059.5,3058.9,0.857]
[1767350240911,10.46462946,3059.5,3058.9,0.857]
[1767350241203,6.72797242,3059.4,3058.9,1.00758792]
[1767350242285,6.06697339,3059.2,3058.8,1.3348022]
[1767350242489,6.05998018,3059.2,3058.9,0.81479541]
[1767350242685,6.05198794,3059.2,3058.9,0.81479541]
[1767350242887,6.04499473,3059.2,3058.9,0.81479541]
[1767350243097,6.03700249,3059.2,3058.9,0.81479541]
[1767350243259,6.03000928,3059.2,3058.9,0.81479541]
[1767350243463,6.02201704,3059.2,3058.9,0.81479541]
[1767350243657,6.01502383,3059.2,3058.9,0.81479541]
[1767350243968,5.98868861,3059.2,3058.9,0.49411009]
[1767350244163,5.98868861,3059.2,3058.8,1.74332163]
[1767350244363,5.98868861,3059.2,3058.9,0.88570764]
[1767350244979,6.72797242,3059.4,3058.9,0.88570764]
[1767350245295,6.72997242,3059.5,3058.9,0.88570764]
[1767350248122,3.2705258,3059.5,3058.9,0.88570764]
[1767350248327,6.597605,3059.4,3058.9,0.88570764]
[1767350251923,6.597605,3059.4,3058.9,0.88670764]
[1767350252827,0.002,3059.5,3058.9,0.88670764]
[1767350253034,0.002,3059.8,3059.4,0.87707033]
[1767350253395,0.002,3059.8,3059.5,1.0498619]
[1767350253607,0.002,3059.8,3059.5,0.87645487]
[1767350253795,6.599605,3059.8,3059.5,0.87645487]
[1767350256029,6.599605,3059.8,3059.3,1.73223471]
[1767350256599,0.002,3059.8,3059.4,0.87464725]
[1767350256796,6.599605,3060.0,3059.4,0.87264725]
[1767350257025,6.599605,3060.0,3059.4,1.37248769]
[1767350257739,6.597605,3059.8,3059.4,0.87264725]
[1767350258221,6.597605,3059.8,3059.2,0.857]
[1767350258222,3.73965026,3059.8,3059.2,1.72907994]
[1767350258529,3.27003086,3060.0,3059.3,0.87151767]
[1767350258530,6.597605,3059.7,3059.3,0.87151767]
[1767350259204,6.597605,3059.7,3059.2,0.857]
[1767350259518,6.597605,3059.7,3059.2,1.72804538]
[1767350260118,6.599605,3059.7,3059.2,1.72804538]
[1767350260413,6.599605,3059.7,3059.2,2.22784325]
[1767350260620,0.002,3060.0,3059.3,0.87047756]
[1767350260940,6.599605,3060.5,3059.7,0.86647756]
[1767350261228,6.597605,3060.4,3059.7,0.857]
[1767350261431,6.597605,3060.4,3059.8,0.8660656]
[1767350261628,6.597605,3060.2,3059.8,0.8660656]
[1767350261936,6.597605,3060.2,3059.7,0.857]
[1767350262128,6.597605,3060.0,3059.6,0.8660656]
[1767350262335,6.597605,3060.0,3059.6,1.7230656]
[1767350262531,6.597605,3060.0,3059.0,0.001]
[1767350262532,3.73865123,3059.7,3059.0,0.001]
[1767350262739,0.002,3060.5,3059.0,0.001]
[1767350262740,6.597605,3059.4,3059.0,0.001]
[1767350266038,3.73965026,3059.6,3059.0,0.001]
[1767350266301,3.99720475,3061.9,3059.0,0.001]
[1767350266302,6.59660596,3060.3,3059.4,0.00147872]
[1767350266446,6.599605,3060.5,3059.6,0.00147872]
[1767350267116,6.597605,3060.3,3059.6,0.00147872]
[1767350268242,6.599605,3060.3,3059.6,0.00147872]
[1767350268942,10.33725526,3060.1,3059.6,0.00147872]
[1767350269343,6.597605,3060.1,3059.6,0.00147872]
[1767350272152,3.74165026,3060.3,3059.6,0.00147872]
[1767350272362,10.63789635,3060.3,3059.6,0.00147872]
[1767350272650,6.89624609,3060.2,3059.6,0.00147872]
[1767350280067,6.77484335,3060.9,3059.6,0.0042741]
[1767350280234,6.77484335,3060.9,3059.5,0.001]
[1767350280235,3.73401737,3060.2,3059.5,0.001]
[1767350280434,6.77384432,3060.1,3059.5,0.03833801]
[1767350280641,6.77384432,3060.1,3059.6,0.00565197]
[1767350284872,6.77384432,3060.1,3059.7,0.00712113]
[1767350289580,6.77384432,3060.1,3059.5,3.27849768]
[1767350290072,6.77384432,3060.1,3059.5,0.01000218]
[1767350290473,3.73401737,3060.0,3059.5,0.01000218]
[1767350290671,6.77484335,3059.9,3059.4,0.001]
[1767350291250,6.77484335,3059.9,3059.4,3.26959973]
[1767350292379,6.77484335,3059.9,3059.5,0.00103634]
[1767350294579,6.77484335,3059.9,3059.5,0.00203634]
[1767350294969,6.77484335,3059.9,3059.1,6.57055995]
[1767350294970,7.82592942,3059.9,3059.1,0.03268935]
[1767350295157,6.77384432,3059.6,3059.0,3.27174363]
[1767350295481,6.77384432,3059.6,3059.1,0.00305229]
[1767350300584,0.00100096,3061.4,3060.6,1.47336698]
[1767350300877,6.77584431,3061.4,3060.2,0.857]
[1767350301079,6.77584431,3061.4,3060.2,2.36383797]
[1767350301250,6.77584431,3061.4,3060.3,0.2363838]
[1767350301453,6.77584431,3061.4,3060.2,0.857]
[1767350302379,0.00100096,3061.4,3060.3,9.80296047]
[1767350303380,6.77584431,3061.4,3060.3,9.80296047]
[1767350307877,0.00100096,3061.4,3060.5,3.73401737]
[1767350308189,0.857,3062.0,3061.2,0.05220987]
[1767350308359,0.857,3062.0,3061.4,0.04403944]
[1767350308360,7.82975003,3062.0,3061.4,0.04403944]
[1767350308559,6.97275003,3062.0,3061.4,0.04403944]
[1767350308783,7.82975003,3062.0,3061.4,0.04403944]
[1767350311201,7.82975003,3062.0,3061.5,3.26637269]
[1767350311686,0.002,3062.6,3061.6,0.25737832]
[1767350311863,7.82975003,3062.5,3061.6,0.25737832]
[1767350312590,6.97275003,3062.5,3061.6,0.25737832]
[1767350312890,6.97275003,3062.3,3061.8,0.24982524]
[1767350313087,6.97275003,3062.3,3061.7,3.26615932]
[1767350313389,7.82975003,3062.3,3061.7,3.51598456]
[1767350314182,7.82975003,3062.3,3061.8,3.50842798]
[1767350314892,7.82975003,3062.3,3061.9,0.23510523]
[1767350315193,7.82975003,3062.3,3061.0,0.23510523]
[1767350315381,7.82975003,3062.3,3061.5,3.26629217]
[1767350316090,7.82975003,3062.3,3061.1,3.26677789]
[1767350316279,7.82975003,3062.3,3061.4,0.22786615]
[1767350316590,7.82975003,3062.3,3061.5,0.25335403]
[1767350316964,6.97275003,3062.3,3061.5,0.25335403]
[1767350317395,6.97275003,3062.3,3061.5,0.22069032]
[1767350317968,6.92275003,3062.2,3061.6,0.26358231]
[1767350318164,6.97275003,3062.5,3061.9,0.26358231]
[1767350318387,6.96991262,3062.5,3062.1,0.25660964]
[1767350319290,0.857,3063.0,3062.1,0.25744705]
[1767350319589,6.97275003,3062.9,3062.1,0.25744705]
[1767350319791,6.97275003,3062.7,3062.0,0.67956876]
[1767350319990,6.80891069,3062.7,3062.1,0.57940996]
[1767350320162,0.857,3063.1,3062.4,0.57940996]
[1767350320362,6.97275003,3063.0,3062.4,0.57940996]
[1767350322492,6.97275003,3063.0,3062.1,3.82592927]
[1767350322701,6.97275003,3062.9,3062.1,3.82598411]
[1767350322904,6.97275003,3062.9,3062.1,0.56027578]
[1767350323403,6.97275003,3062.9,3062.0,3.26577053]
[1767350323573,6.97275003,3062.9,3061.9,0.55503045]
[1767350323773,6.97275003,3063.0,3062.0,3.26577243]
[1767350324087,6.97275003,3063.0,3062.1,3.81975858]
[1767350324401,7.82975003,3062.9,3062.1,0.55403045]
[1767350326703,4.12189642,3062.9,3062.1,0.55403045]
[1767350326888,6.97275003,3062.8,3062.1,0.55403045]
[1767350327491,6.97275003,3062.8,3061.9,0.53100164]
[1767350327683,6.97275003,3062.8,3062.0,0.53000164]
[1767350328612,6.97275003,3062.6,3062.0,0.53000164]
[1767350332178,6.97275003,3062.6,3062.0,3.26582739]
[1767350332393,6.97275003,3062.6,3062.1,0.5069944]
[1767350334508,0.857,3062.5,3062.1,0.5069944]
[1767350335207,7.82975003,3062.5,3062.1,0.5069944]
[1767350335781,0.857,3062.5,3062.1,0.5069944]
[1767350335984,0.857,3062.4,3062.1,0.5069944]
[1767350338516,6.57856082,3062.6,3062.0,0.001]
[1767350339616,6.57856275,3062.7,3062.0,4.101127]
[1767350340298,6.57856275,3062.7,3062.0,0.37392064]
[1767350340918,6.57856275,3062.7,3062.1,3.26573266]
[1767350342224,6.57856275,3062.7,3062.1,6.53146532]
[1767350342524,6.57856275,3062.7,3062.2,1.06325923]
[1767350343035,6.57856082,3064.2,3062.7,0.02684686]
[1767350343332,6.57856082,3063.8,3063.0,0.02684686]
[1767350344025,6.57856082,3064.3,3063.3,0.0224984]
[1767350344232,6.57856082,3064.3,3063.1,0.0224984]
[1767350344418,6.57856082,3064.3,3063.0,3.72720636]
[1767350344419,6.57856082,3064.1,3063.3,0.01818866]
[1767350345127,6.57856082,3064.1,3063.4,0.01818866]
[1767350346635,6.58056082,3064.0,3063.4,0.01818866]
[1767350349101,6.58056082,3064.0,3063.5,0.0014461]
[1767350351506,6.58056082,3064.0,3063.2,0.37497048]
[1767350351507,6.58056082,3064.0,3063.2,3.63948053]
[1767350351819,6.58056082,3064.0,3063.2,3.26451005]
[1767350352198,6.58056082,3064.0,3063.0,6.52952895]
[1767350352907,6.58056082,3064.0,3063.1,0.03264666]
[1767350354227,6.58056082,3064.0,3063.2,3.26455993]
[1767350354428,6.58056082,3064.0,3063.3,0.36236519]
[1767350356358,6.58056082,3064.0,3063.3,3.62676705]
[1767350356705,6.58056082,3064.0,3063.3,7.35397341]
[1767350356904,0.002,3064.0,3063.3,3.59412252]
[1767350357102,3.72720636,3063.8,3063.0,0.856]
[1767350357303,6.57856082,3063.3,3062.8,0.02019375]
[1767350357520,7.38546844,3064.0,3062.8,0.02019375]
[1767350357521,6.57856082,3063.7,3062.8,0.02019375]
[1767350358207,6.57856082,3063.7,3063.1,3.2646604]
[1767350358407,6.57856082,3063.9,3063.0,6.52954606]
[1767350358635,6.57856082,3063.9,3063.1,1.02567524]
[1767350360348,3.72920636,3064.0,3062.4,6.53080168]
[1767350360349,6.57856082,3063.7,3062.4,6.53080168]
[1767350360545,6.57856082,3063.4,3062.4,6.53080168]
[1767350360746,6.57856082,3063.4,3062.5,0.856]
[1767350362249,6.57856082,3063.4,3063.0,0.001]
[1767350362755,6.57856082,3063.4,3062.6,3.2651995]
[1767350362942,6.57856082,3063.4,3062.7,0.41211995]
[1767350364052,6.57856082,3063.2,3062.7,0.41211995]
[1767350364248,6.57856082,3063.2,3062.5,3.26528613]
[1767350365034,6.57856082,3063.2,3062.4,4.15401653]
[1767350366940,6.57856082,3063.2,3062.4,3.29801653]
[1767350370648,6.57856082,3063.2,3062.4,3.29901653]
[1767350370961,6.57856082,3063.2,3062.5,0.41550165]
[1767350373460,6.57856082,3063.2,3062.5,3.68080253]
[1767350374962,6.57856082,3063.2,3062.5,6.94610865]
[1767350377554,6.37856082,3063.2,3062.5,6.94610865]
[1767350379159,6.37856082,3063.2,3062.5,6.94710865]
[1767350379471,6.37856082,3063.2,3062.7,3.26509289]
[1767350380149,6.37856082,3063.2,3062.6,3.95995282]
[1767350382084,6.37856082,3063.2,3062.6,0.69481087]
[1767350382287,6.37856082,3063.2,3062.5,3.26628793]
[1767350383251,6.37856082,3063.2,3062.0,3.58880887]
[1767350383578,6.99149246,3063.5,3061.9,0.001]
[1767350383579,6.55554598,3062.3,3061.9,0.001]
[1767350384448,6.55554598,3062.3,3061.6,9.68976474]
[1767350384872,6.55554598,3062.3,3061.6,9.68979868]
[1767350385746,6.55554598,3062.3,3061.6,6.42353746]
[1767350386173,10.28275234,3062.3,3061.6,6.42353746]
[1767350386409,6.55554598,3062.2,3061.6,6.42353746]
[1767350386550,6.55554598,3062.2,3061.5,0.856]
[1767350387648,6.55554598,3062.0,3061.5,0.856]
[1767350388455,6.55554598,3062.0,3061.5,0.001]
[1767350389654,6.55554598,3062.0,3061.5,6.42134303]
[1767350389873,6.55554598,3062.0,3061.5,7.06347733]
[1767350390594,6.38970664,3062.5,3061.6,6.58552901]
[1767350391860,6.55554598,3062.4,3061.6,6.58506053]
[1767350399714,6.55554598,3062.4,3061.7,6.5810502]
[1767350399874,6.55554598,3062.4,3061.7,7.63009368]
[1767350402408,6.84059971,3062.3,3061.7,7.63009368]
[1767350402903,6.84059971,3062.3,3061.7,1.04904348]
[1767350403110,6.84059971,3062.3,3061.6,6.57977501]
[1767350403280,3.26738829,3062.5,3061.7,3.26615932]
[1767350403281,0.002,3062.5,3061.7,3.26615932]
[1767350403476,0.002,3062.5,3061.8,6.61239788]
[1767350404499,0.002,3062.5,3062.0,6.57937865]
[1767350404795,0.002,3062.5,3062.1,7.56352199]
[1767350405300,3.26458198,3063.2,3062.2,6.57698953]
[1767350405301,6.84059971,3063.2,3062.2,6.57698953]
[1767350406170,6.84059971,3063.0,3062.1,0.98453246]
[1767350406366,6.84059971,3062.8,3061.9,0.856]
[1767350406991,10.56911326,3062.8,3061.8,6.57661354]
[1767350407181,6.84059971,3062.7,3061.8,6.57661354]
[1767350407385,6.84059971,3062.7,3061.8,9.84262802]
[1767350407694,6.84059971,3062.7,3061.8,6.57661354]
[1767350408089,6.84059971,3062.7,3061.8,7.03281601]
[1767350408690,6.84059971,3062.6,3061.8,7.03281601]
[1767350409503,6.84059971,3062.6,3061.9,6.57524805]
[1767350411614,6.84059971,3062.6,3062.0,6.57467186]
[1767350412872,6.84259971,3062.6,3062.0,6.57467186]
[1767350413103,6.84259971,3062.6,3062.2,6.57434871]
[1767350413700,6.84059971,3062.9,3062.3,6.64667679]
[1767350414085,6.84059971,3062.9,3062.2,3.26556969]
[1767350414309,6.84059971,3062.9,3062.2,9.91024648]
[1767350414498,6.84059971,3062.9,3062.4,6.64442033]
[1767350415302,6.84059971,3062.9,3062.3,1.20768996]
[1767350416607,6.84059971,3062.9,3062.2,6.64442033]
[1767350416809,6.84059971,3062.9,3062.1,1.3106531]
[1767350417385,6.84059971,3062.9,3062.0,9.90968608]
[1767350417913,6.84059971,3062.9,3062.1,3.26572374]
[1767350418616,6.84059971,3062.9,3062.1,9.90517305]
[1767350420116,6.84059971,3062.9,3062.2,6.63724724]
[1767350420317,6.84059971,3062.9,3062.2,9.90278056]
[1767350420519,6.84059971,3062.9,3062.3,7.95409767]
[1767350421204,6.84259971,3062.9,3062.3,7.95409767]
[1767350421714,0.002,3062.9,3062.3,7.95409767]
[1767350422523,0.002,3062.9,3062.4,6.63080984]
[1767350424713,0.002,3062.9,3062.5,6.62658323]
[1767350425383,6.84259971,3062.9,3062.5,6.62658323]
[1767350425614,6.84259971,3062.9,3062.3,4.58231363]
[1767350425818,6.84259971,3062.9,3062.3,6.44501823]
[1767350425993,6.84259971,3062.9,3062.1,9.63370405]
[1767350426195,6.84259971,3062.9,3062.2,0.856]
[1767350427188,6.84259971,3062.9,3062.3,0.856]
[1767350427509,6.84259971,3062.9,3062.2,0.856]
[1767350427686,6.84259971,3062.9,3062.1,6.36799527]
[1767350427890,6.84259971,3062.9,3062.2,0.856]
[1767350428597,6.84259971,3062.9,3062.2,7.22399527]
[1767350429221,0.002,3062.9,3062.2,7.22399527]
[1767350429410,3.26420514,3063.6,3062.7,6.36799527]
[1767350429588,6.37891662,3063.5,3062.3,6.36799527]
[1767350429919,6.37891662,3063.4,3062.4,0.856]
[1767350430094,6.37891662,3063.1,3062.1,6.36799527]
[1767350430290,6.37891662,3063.1,3062.2,7.22399527]
[1767350430821,6.37891662,3063.1,3062.2,6.36799527]
[1767350431121,6.37891662,3063.1,3062.4,6.36799527]
[1767350434020,6.37891662,3063.1,3062.4,7.22399527]
[1767350434528,6.37891662,3063.1,3062.5,0.856]
[1767350434706,6.37891662,3063.1,3062.5,7.22399527]
[1767350435822,6.37891662,3063.1,3062.6,6.36799527]
[1767350436017,6.37891662,3063.1,3062.6,7.0903948]
[1767350436923,6.38091662,3063.1,3062.6,7.0903948]
[1767350438632,0.002,3063.1,3062.6,7.0903948]
[1767350439202,6.38091662,3063.1,3062.6,7.0903948]
[1767350439399,6.38091662,3063.1,3062.6,7.9463948]
[1767350439834,6.38091662,3063.1,3062.6,7.0903948]
[1767350440409,6.38091662,3063.1,3062.6,7.9463948]
[1767350442844,6.38091662,3063.1,3062.6,1.57839953]
[1767350443043,6.38091662,3063.1,3062.6,0.856]
[1767350443720,6.38091662,3063.1,3062.6,7.22399527]
[1767350445646,6.38091662,3063.1,3062.6,6.36799527]
[1767350445847,3.26477309,3063.0,3061.8,0.001]
[1767350446146,6.37891662,3062.6,3061.9,6.36799527]
[1767350446317,6.37891662,3062.6,3062.0,6.36799527]
[1767350447045,6.37891662,3062.6,3062.1,6.36799527]
[1767350447342,7.01680828,3062.6,3061.8,0.001]
[1767350447546,6.37891662,3062.5,3061.8,0.001]
[1767350447915,6.37891662,3062.5,3061.8,6.36899527]
[1767350448140,3.26531368,3062.5,3061.8,6.36899527]
[1767350448444,6.76923715,3062.4,3061.8,6.36899527]
[1767350448614,6.76923715,3062.4,3061.8,0.001]
[1767350449849,6.76923715,3062.4,3061.6,6.36799527]
[1767350450719,6.76923715,3062.4,3061.5,3.26734304]
[1767350450720,6.37891662,3062.3,3061.5,0.001]
[1767350451047,6.37891662,3062.3,3061.5,6.36899527]
[1767350452342,6.37891662,3062.2,3061.5,0.001]
[1767350453156,6.37891662,3062.2,3061.6,6.36799527]
[1767350454821,6.37891662,3062.2,3061.5,0.001]
[1767350456428,6.43214286,3061.5,3061.1,0.001]
[1767350456638,6.41195365,3061.5,3061.1,0.001]
[1767350456824,0.857,3061.7,3061.1,6.28129882]
[1767350457029,7.28914286,3061.7,3061.1,6.28129882]
[1767350460469,6.43214286,3061.9,3061.2,6.28029882]
[1767350462241,6.43214286,3061.8,3061.2,6.28029882]
[1767350462622,6.43214286,3061.7,3061.2,6.28029882]
[1767350462823,6.43214286,3061.7,3061.1,0.001]
[1767350462824,3.73052384,3061.6,3061.1,6.28029882]
[1767350463022,6.43214286,3061.7,3061.1,6.28029882]
[1767350464358,6.43214286,3061.5,3061.0,0.001]
[1767350465523,6.43214286,3061.5,3061.0,6.28129882]
[1767350466733,4.12317099,3061.7,3060.9,0.001]
[1767350466734,6.43214286,3061.3,3060.9,0.001]
[1767350467050,5.278101,3061.1,3060.8,6.28129882]
[1767350467251,5.278101,3061.1,3060.8,6.9096287]
[1767350469347,6.43214286,3061.4,3060.9,6.28029882]
[1767350471524,6.43214286,3061.2,3060.9,6.28029882]
[1767350471753,0.002,3061.5,3060.5,0.001]
[1767350471754,6.43214286,3061.0,3060.5,0.001]
[1767350472053,6.43114383,3060.8,3060.5,0.001]
[1767350473071,6.43114383,3060.8,3060.2,0.001]
[1767350473072,6.43214286,3060.6,3060.2,0.001]
[1767350473380,6.43214286,3060.6,3060.2,6.28129882]
[1767350474541,6.43214286,3060.6,3060.2,0.001]
[1767350474950,6.43214286,3060.6,3060.2,6.28129882]
[1767350476241,6.43214286,3060.6,3060.2,6.9095287]
[1767350476646,6.43214286,3060.6,3060.5,0.001]
[1767350476841,6.43214286,3060.6,3060.2,6.28129882]
[1767350479151,6.43114383,3060.3,3059.8,6.28129882]
[1767350479352,6.43214286,3061.2,3060.3,6.28029882]
[1767350479563,6.4301448,3061.2,3060.3,6.28029882]
[1767350481282,6.4301448,3061.2,3060.3,9.54786523]
[1767350481486,6.4301448,3061.2,3060.4,6.28029882]
[1767350483475,6.4301448,3061.2,3060.5,6.28029882]
[1767350483674,6.4301448,3061.2,3060.6,7.23508178]
[1767350494365,6.73069111,3061.1,3060.5,0.001]
[1767350494989,6.73069111,3061.1,3060.5,6.83491313]
[1767350498495,6.73069111,3061.1,3060.5,3.73152384]
[1767350498791,0.002,3061.2,3060.6,6.83391313]
[1767350499020,6.73269111,3061.2,3060.6,6.83391313]
[1767350499208,6.73269111,3061.2,3060.7,6.83391313]
[1767350500601,0.857,3061.3,3060.8,6.83391313]
[1767350501071,7.58769111,3061.3,3060.8,6.83391313]
[1767350505307,0.857,3061.3,3060.9,6.83391313]
[1767350505480,6.73269111,3061.5,3060.9,6.83391313]
[1767350505683,7.58769111,3061.4,3060.9,6.83391313]
[1767350505886,6.73269111,3061.3,3060.9,7.84401414]
[1767350509582,6.73269111,3061.3,3060.9,6.83391313]
[1767350509897,6.73269111,3061.3,3060.7,6.83391313]
[1767350510994,6.73269111,3061.3,3060.7,10.10112306]
[1767350511522,6.73269111,3061.3,3060.5,3.26843759]
[1767350511939,6.73269111,3061.3,3060.6,6.83391313]
[1767350512213,6.73269111,3061.3,3060.6,8.21720059]
[1767350512420,6.73269111,3061.3,3060.7,3.26720877]
[1767350512712,6.73269111,3061.3,3060.8,6.83391313]
[1767350514926,6.73269111,3061.3,3060.7,3.26720877]
[1767350515296,6.73269111,3061.3,3060.8,6.83391313]
[1767350517530,6.73269111,3061.3,3060.7,3.26720877]
[1767350517730,6.73269111,3061.3,3060.8,7.21107661]
[1767350518832,6.73269111,3061.3,3060.7,3.26720877]
[1767350519400,6.73269111,3061.3,3060.7,10.47828538]
[1767350519602,6.73269111,3061.3,3060.8,7.21107661]
[1767350519603,0.002,3061.3,3060.8,7.21107661]
[1767350520537,7.05994011,3061.3,3060.8,7.21107661]
[1767350523528,7.05994011,3061.3,3060.8,10.47816337]
[1767350523837,7.05994011,3061.3,3060.9,7.21107661]
[1767350526700,7.05994011,3061.3,3060.7,10.47829936]
[1767350527026,7.05994011,3061.3,3060.7,7.21107661]
[1767350527529,7.05994011,3061.3,3060.7,10.47830019]
[1767350529061,7.05994011,3061.3,3060.6,0.001]
[1767350529062,7.76613412,3061.3,3060.6,0.001]
[1767350529229,7.05994011,3061.3,3060.6,7.21207661]
[1767350529732,7.05994011,3061.3,3060.9,0.001]
[1767350530302,7.05794011,3061.1,3060.3,0.001]
[1767350530514,7.05794011,3060.9,3060.3,7.21207661]
[1767350532914,7.05794011,3060.9,3060.3,3.26865267]
[1767350533227,7.05794011,3060.9,3060.4,7.21107661]
[1767350533802,0.857,3061.0,3060.4,7.21107661]
[1767350534302,7.05994011,3061.3,3060.4,7.21107661]
[1767350534498,8.17848322,3061.3,3060.4,3.26749912]
[1767350534704,7.05794011,3061.2,3060.5,7.21107661]
[1767350537236,7.05794011,3061.2,3060.6,7.21107661]
[1767350537532,0.002,3061.3,3060.6,7.21107661]
[1767350537930,7.05994011,3061.3,3060.6,7.21107661]
[1767350538330,7.05994011,3061.3,3060.6,8.63201969]
[1767350538504,7.05794011,3061.2,3060.3,0.001]
[1767350538704,7.05794011,3061.2,3060.3,7.21207661]
[1767350538902,7.91494011,3061.2,3060.3,7.21207661]
[1767350539333,7.05794011,3061.0,3060.3,7.21207661]
[1767350539526,7.05794011,3060.8,3060.3,7.21207661]
[1767350540813,7.05794011,3060.8,3060.3,0.001]
[1767350541335,7.05794011,3060.8,3060.0,7.21107661]
[1767350541834,3.26713198,3060.8,3060.0,7.21107661]
[1767350542040,7.05794011,3060.7,3060.0,7.21107661]
[1767350544142,7.05794011,3060.6,3060.0,7.21107661]
[1767350547544,7.19964515,3060.5,3059.8,0.001]
[1767350548050,7.19964515,3060.5,3059.8,7.45318455]
[1767350549253,7.19964515,3060.6,3059.8,7.45318455]
[1767350550348,7.19964515,3060.5,3059.8,7.45318455]
[1767350550550,8.35991994,3060.5,3059.8,7.45318455]
[1767350552547,7.19964515,3060.4,3059.8,7.45318455]
[1767350556574,7.19964515,3060.4,3059.8,0.001]
[1767350557891,7.19964515,3060.4,3059.8,7.45318455]
[1767350558253,7.19964515,3060.6,3059.8,7.45318455]
[1767350558450,7.19964515,3060.6,3060.0,7.45218455]
[1767350558773,7.20164515,3060.8,3060.0,7.45218455]
[1767350559352,7.20164515,3060.8,3060.2,7.45218455]
[1767350560579,0.002,3060.8,3060.2,7.45218455]
[1767350560778,3.26675598,3061.2,3060.4,7.45218455]
[1767350560779,7.19964515,3061.2,3060.4,7.45218455]
[1767350562181,7.19964515,3061.2,3060.5,7.45218455]
[1767350567051,7.20164515,3061.2,3060.5,7.45218455]
[1767350571787,7.20164515,3061.2,3060.6,7.45218455]
[1767350572083,0.002,3061.2,3060.6,7.45218455]
[1767350572482,7.20164515,3061.2,3060.6,7.45218455]
[1767350581704,0.002,3061.2,3060.6,8.52425233]
[1767350581912,3.26587441,3062.0,3061.1,7.03475054]
[1767350582068,7.12865854,3061.9,3061.1,7.03475054]
[1767350582792,7.13065854,3062.1,3061.3,7.03475054]
[1767350582990,7.13065854,3062.1,3061.5,7.03475054]
[1767350583191,6.96382016,3062.1,3061.7,7.03475054]
[1767350583368,7.12865854,3062.3,3061.7,7.03475054]
[1767350583571,7.12865854,3062.3,3061.3,7.03475054]
[1767350583802,7.12865854,3062.1,3061.4,7.03475054]
[1767350584019,7.12865854,3062.1,3061.4,7.88425366]
[1767350586111,7.12865854,3062.0,3061.4,7.88425366]
[1767350587503,7.12865854,3062.0,3061.4,7.03475054]